Cogmind - Beta 15 @@@ ROGUE MODE // 2025.07.16 @ 00:15:19 Player: Surreal Result: Self-destructed Performance ------------- Evolutions (2) 1000 Regions Visited (3) 600 Robots Destroyed (16) 80 Value Destroyed (538) 538 Prototype IDs (1) 20 Alien Tech Used (0) 0 Bonus (0) 0 TOTAL SCORE: 2238 Bonus ------- None Cogmind --------- Core Integrity 414/550 Matter 140/300 Energy 100/100 System Corruption 0% Temperature Danger (445) Movement Core (250) Ox4 Location -8/Materials Parts ------- > --- POWER (1) -------- (None) > --- PROPULSION (4) --- (None) > --- UTILITY (3) ------ Medium Storage Unit Signal Interpreter > --- WEAPON (3) ------- High-powered Shotgun > --- INVENTORY (10) --- Improved Hover Unit Peak State ------------ > --- POWER ------------ Light Nuclear Core > --- PROPULSION ------- Aluminum Leg Aluminum Leg Aluminum Leg > --- UTILITY ---------- Medium Storage Unit Sensor Array Signal Interpreter > --- WEAPON ----------- Small Laser Minigun High-powered Shotgun > --- INVENTORY -------- Improved Hover Unit [Rating: 16] Favorites ----------- Power Light Nuclear Core Engine Light Ion Engine Power Core Light Nuclear Core Propulsion Aluminum Leg Leg Aluminum Leg Hover Unit Improved Hover Unit Utility Small Storage Unit Device Seismic Detector Storage Small Storage Unit Processor Signal Interpreter Weapon Light Assault Rifle Energy Gun Small Laser Ballistic Gun Light Assault Rifle Build | -11 -10 -9 -8 ------- Run | Yrd Mat Mat Mat Slots Evolved 4 | . . 2 2 Power . | . . . . Propulsion 2 | . . 1 1 Utility 1 | . . 1 . Weapon 1 | . . . 1 Parts Attached 24 | 6 8 7 3 Power 3 | 1 2 . . Engine 1 | 1 . . . Core 2 | . 2 . . Reactor . | . . . . Propulsion 10 | 2 3 5 . Treads . | . . . . Leg 7 | 2 3 2 . Wheel . | . . . . Hover 3 | . . 3 . Flight . | . . . . Utility 5 | 1 3 1 . Device 2 | . 2 . . Storage 2 | 1 1 . . Processor 1 | . . 1 . Hackware . | . . . . Protection . | . . . . Artifact . | . . . . Weapon 6 | 2 . 1 3 Energy Gun 1 | . . . 1 Energy Cannon . | . . . . Ballistic Gun 5 | 2 . 1 2 Ballistic Cannon . | . . . . Launcher . | . . . . Special Weapon . | . . . . Impact Weapon . | . . . . Slashing Weapon . | . . . . Piercing Weapon . | . . . . Special Melee Weapon . | . . . . Unidentified Prototypes 1 | . . . 1 Parts Lost 15 | . 1 6 8 Power 2 | . . 1 1 Propulsion 7 | . 1 3 3 Utility 1 | . . . 1 Weapon 5 | . . 2 3 Highest Loss Streak 7 | . 1 5 7 To Critical Strikes . | . . . . Average Backups 4 | 2 5 5 1 Power . | . . 1 . Propulsion 2 | . 3 3 1 Utility . | . 1 . . Weapon . | 1 1 1 . Tool/Special . | . . . . Unused Backups 5 | . 3 . 2 Power . | . . . . Propulsion 2 | . 1 . 1 Utility 2 | . 2 . . Weapon 1 | . . . 1 Tool/Special . | . . . . Average Slot Usage (%) 90 | . 97 83 72 Engine 5 | . 7 . . Core 7 | . 6 8 7 Leg 23 | . 27 6 23 Hover 3 | . . 17 . Device 11 | . 11 11 9 Storage 12 | . 14 11 9 Processor 3 | . . 10 9 Energy Gun 1 | . . . 8 Ballistic Gun 22 | . 28 17 5 Peak Build Rating 16 | 6 10 14 16 Average Rating 8 | 3 8 10 11 On Entrance 4 | . 6 9 3 Naked Turns . | . . . . Heaviest Build 23 | 10 18 19 23 Greatest Support 30 | 20 20 30 30 Greatest Overweight (x) 5 | 2 . 5 . Average Overweight (x) . | . . . . Largest Inventory Capacity 10 | 8 10 10 10 Average Capacity 8 | 7 8 10 10 Most Carried 8 | 5 8 7 5 Average Carried 4 | 2 5 5 1 Final Capacity 10 | 8 10 10 10 Final Carried 6 | 1 5 6 1 Class Distribution -------------------- 82% | Mutant 13% | Scavenger-Mutant 3% | Skirmisher Dominant Class ---------------- Mutant | -10/Materials Mutant | -9/Materials Mutant | -8/Materials Resources | -11 -10 -9 -8 ----------- Run | Yrd Mat Mat Mat Matter Collected 476 | 268 104 54 50 Remotely . | . . . . Salvage Created 702 | 97 274 195 136 Parts 45 | 3 20 13 9 Haulers Intercepted 1 | . 1 . . Recyclers Shooed 1 | . 1 . . Parts Field Recycled . | . . . . Retrieved Matter . | . . . . Parts Self-Destructed . | . . . . Prevented . | . . . . Kills | -11 -10 -9 -8 ------- Run | Yrd Mat Mat Mat Combat Hostiles Destroyed 13 | . 6 4 3 Guns 13 | . 6 4 3 Classes Destroyed 5 | 1 2 1 1 Worker 1 | . . . 1 Hauler 1 | . 1 . . Recycler 1 | 1 . . . Grunt 11 | . 6 2 3 Sentry 2 | . . 2 . Best Kill Streak 4 | 1 2 3 4 Combat Bots Only 3 | . 2 3 3 Max Kills in Single Turn 1 | 1 1 1 1 Gunslinging . | . . . . Exploded . | . . . . Melee . | . . . . Uniques/NPCs Destroyed . | . . . . Combat | -11 -10 -9 -8 -------- Run | Yrd Mat Mat Mat Hostile Shots Fired 163 | . 44 63 56 Missed 43 | . 10 25 8 Hits 120 | . 34 38 48 Projectile 120 | . 34 38 48 Critical Strikes 7 | . . 3 4 Damage Taken 1730 | . 455 538 737 Core 374 | . 100 138 136 Absorbed by Shields . | . . . . Core Remaining (%) 75 | 100 60 65 . Volleys Fired 66 | 4 38 14 10 Largest 3 | 2 2 2 3 Hottest 90 | 40 40 40 90 Shots Fired 140 | 8 76 28 28 Gun 140 | 8 76 28 28 Cannon . | . . . . Launcher . | . . . . Special . | . . . . Kinetic 130 | 8 76 28 18 Thermal 10 | . . . 10 Explosive . | . . . . Electromagnetic . | . . . . Robot Hit Streak 27 | 3 8 27 4 Robot Miss Streak 3 | 2 2 1 3 Penetration Max . | . . . . Secondary Targets 4 | . . 2 2 Max Gunslinging Chain 1 | . . 1 1 Shots Hit Robots 106 | 4 55 27 20 Core Hits 44 | 3 22 9 10 Critical Kills 1 | . . . 1 Critical Parts Destroyed 1 | . 1 . . Critical Strikes 2 | . 1 . 1 Destroy 2 | . 1 . 1 Melee Attacks . | . . . . Impact . | . . . . Slashing . | . . . . Piercing . | . . . . Sneak Attacks . | . . . . Combat Hostiles . | . . . . Follow-up Attacks . | . . . . Damage Inflicted 1105 | 29 435 266 375 Guns 1099 | 29 429 266 375 Cannons . | . . . . Explosions . | . . . . Melee . | . . . . Ramming 6 | . 6 . . Kinetic 1020 | 29 429 266 296 Thermal 79 | . . . 79 Explosive . | . . . . Electromagnetic . | . . . . Impact . | . . . . Slashing . | . . . . Piercing . | . . . . Highest Corruption 1 | . 1 . . Average Corruption 1 | . 1 . . Corruption Purged . | . . . . Corruption Blocked . | . . . . Effects 2 | . 2 . . Message Errors 1 | . 1 . . Data Loss (minor) 1 | . 1 . . Overload Shots . | . . . . Overflow Damage . | . . . . Projectiles . | . . . . Explosions . | . . . . Melee . | . . . . Knockbacks . | . . . . Impact . | . . . . Kinetic . | . . . . Secondary . | . . . . Self-Inflicted Damage . | . . . . Shots . | . . . . Rammed . | . . . . Targets Rammed 1 | . 1 . . Kicked 1 | . 1 . . Crushed . | . . . . Highest Temperature 436 | . 42 53 436 Average Temperature 63 | . 14 21 231 Received Heat Transfer 1002 | . 261 237 504 Siege Activations . | . . . . Martial Activations . | . . . . Shielding Activations . | . . . . Robots Disrupted . | . . . . Combat Hostiles . | . . . . Robots Corrupted . | . . . . Combat Hostiles . | . . . . Parts Fried . | . . . . Impact Corruptions . | . . . . Robots Melted . | . . . . Combat Hostiles . | . . . . Parts Melted . | . . . . Heat Transferred 175 | . . . 175 Parts Sabotaged . | . . . . Parts Stolen . | . . . . Parts Stripped . | . . . . Power Chain Reactions . | . . . . Alert | -11 -10 -9 -8 ------- Run | Yrd Mat Mat Mat Maximum Alert Level . | . . . . Low Security (%) 100 | 100 100 100 100 Level 1 . | . . . . Level 2 . | . . . . Level 3 . | . . . . Level 4 . | . . . . Level 5 . | . . . . High Security . | . . . . Max Security . | . . . . Peak Influence 90 | 5 59 90 40 Initial 12 | . . . 12 Average 16 | . 19 22 3 Influence Increases 485 | 5 275 120 85 Destroy 0b10 Robot/C 260 | . 120 80 60 Destroy 0b10 Robot/NC 15 | 5 5 . 5 Destroy Leader 92 | . 32 40 20 Successful Hack 28 | . 28 . . Partial Spotted 15 | . 15 . . Lose Combat Pursuer 75 | . 75 . . Influence Decreases 455 | 5 275 90 85 Entered New Map 18 | . . . 18 Time Decay 306 | 5 244 40 17 Lost Part 110 | . 10 50 50 Purge Threat 21 | . 21 . . Squads Dispatched 7 | . 1 2 4 Investigation 1 | . 1 . . Extermination . | . . . . Reinforcement 5 | . . 2 3 Assault . | . . . . Garrison 1 | . . . 1 Intercept . | . . . . Searches Triggered . | . . . . Construction Impeded . | . . . . Haulers Reinforced . | . . . . Active Scanning Responses . | . . . . Cargo Convoy Interrupts . | . . . . Stealth | -11 -10 -9 -8 --------- Run | Yrd Mat Mat Mat Distress Signals 2 | . 1 . 1 Communications Jammed . | . . . . Distress Signals . | . . . . Times Spotted 34 | . 17 7 10 Peak Tracking Total 8 | . 3 6 8 Tactical Retreats 4 | . 4 . . Traps | -11 -10 -9 -8 ------- Run | Yrd Mat Mat Mat Traps Triggered 1 | . . 1 . Indirectly . | . . . . Trap Hack Attempts . | . . . . Triggered . | . . . . Disarmed . | . . . . Reprogrammed . | . . . . Reused . | . . . . Traps Extracted . | . . . . Installed . | . . . . Triggered . | . . . . Machines | -11 -10 -9 -8 ---------- Run | Yrd Mat Mat Mat Machines Disabled . | . . . . Max in Single Turn . | . . . . Machines Repaired . | . . . . Machines Dismantled . | . . . . Machines Sabotaged . | . . . . Overloaded Fab Kills . | . . . . Hacking | -11 -10 -9 -8 --------- Run | Yrd Mat Mat Mat Machines Accessed 7 | . 7 . . Terminals 5 | . 5 . . Fabricators . | . . . . Repair Stations . | . . . . Recycling Units 2 | . 2 . . Scanalyzers . | . . . . Garrison Access . | . . . . Total Hacks 26 | . 26 . . Successful 16 | . 16 . . Failed 10 | . 10 . . Catastrophic 1 | . 1 . . Database Lockouts . | . . . . Manual 6 | . 6 . . Terminals 22 | . 22 . . Fabricators . | . . . . Repair Stations . | . . . . Recycling Units 4 | . 4 . . Scanalyzers . | . . . . Garrison Access . | . . . . Terminal Hacks 10 | . 10 . . Alert Level 2 | . 2 . . Unreport Threat 1 | . 1 . . Locate Traps 1 | . 1 . . Transport Status 1 | . 1 . . Recall Investigation 1 | . 1 . . Recall Reinforcements 1 | . 1 . . Registered Components 1 | . 1 . . Zone Layout 2 | . 2 . . Fabricator Hacks . | . . . . Repair Station Hacks . | . . . . Recycling Unit Hacks 2 | . 2 . . Retrieve Components 2 | . 2 . . Scanalyzer . | . . . . Garrison Access Hacks . | . . . . Unauthorized Hacks 2 | . 2 . . Terminals 2 | . 2 . . Botnet 2 | . 2 . . Fabricators . | . . . . Repair Stations . | . . . . Recycling Units . | . . . . Scanalyzers . | . . . . Garrison Access . | . . . . Data Cores Recovered . | . . . . Used . | . . . . Hacking Detections 5 | . 5 . . Full Trace Events 2 | . 2 . . Feedback Events 1 | . 1 . . Corruption 1 | . 1 . . Feedback Blocked . | . . . . Robot Schematics Acquired . | . . . . Robots Built . | . . . . Authchips . | . . . . Time . | . . . . Total Robot Build Rating . | . . . . Part Schematics Acquired . | . . . . Parts Built . | . . . . Authchips . | . . . . Time . | . . . . Total Part Build Rating . | . . . . Parts Repaired . | . . . . Time . | . . . . Parts Recycled . | . . . . Recycled Matter . | . . . . Retrieved Matter . | . . . . Retrieved Components 6 | . 6 . . Parts Scanalyzed . | . . . . Part Schematics Acquired . | . . . . Parts Damaged . | . . . . Bothacking | -11 -10 -9 -8 ------------ Run | Yrd Mat Mat Mat Used RIF Installer . | . . . . Robots Hacked . | . . . . Non-combat . | . . . . Combat . | . . . . Robot Hacks Applied . | . . . . Relay Couplers Released . | . . . . Fabnet Peak Effective % . | . . . . Robots Rewired . | . . . . Allies Hacked . | . . . . Hacks Repelled . | . . . . Allies | -11 -10 -9 -8 -------- Run | Yrd Mat Mat Mat Total Allies . | . . . . Largest Group . | . . . . Highest-Rated Group . | . . . . Highest-Rated Ally . | . . . . Total Orders . | . . . . Ally Attacks . | . . . . Total Damage . | . . . . Kills . | . . . . Allies Corrupted . | . . . . Allies Melted . | . . . . Intel | -11 -10 -9 -8 ------- Run | Yrd Mat Mat Mat Active Infowar (turns) 945 | . 608 182 155 Sensors 419 | . 82 182 155 Seismic 526 | . 526 . . Robot Analysis Total . | . . . . Derelict Logs Recovered . | . . . . Drone Launches . | . . . . Drone Recoveries . | . . . . Exploration | -11 -10 -9 -8 ------------- Run | Yrd Mat Mat Mat Turns Passed 1145 | 84 723 182 156 Spaces Moved 706 | 59 441 127 79 Core 28 | 18 . 10 . Treads . | . . . . Legs 589 | 41 441 28 79 Wheels . | . . . . Hover 89 | . . 89 . Flight . | . . . . Fastest Speed 50 | 50 120 52 120 Average Speed 111 | 103 120 81 120 Slowest Speed 300 | 150 120 300 120 Overloaded Moves . | . . . . Propulsion Burnouts . | . . . . Robots Hopped . | . . . . Potential Cave-ins . | . . . . Cave-ins Triggered . | . . . . Exploration Rate (%) 22 | 4 60 15 11 Regions Visited 3 Branch Regions . Pre-discovered Areas . | . . . . Known Exits Taken 1 | . . 1 . Unknown Exits Taken 2 | 1 1 . . Scrap Searched . | . . . . Spaces Dug . | . . . . Terrain Destroyed . | . . . . Melee . | . . . . Projectile . | . . . . AOE . | . . . . Terrain Rammed . | . . . . Walls Destroyed . | . . . . Machines Disabled . | . . . . Actions | -11 -10 -9 -8 --------- Run | Yrd Mat Mat Mat Total 951 | 75 574 183 119 Wait 105 | . 65 21 19 Move 703 | 58 440 126 79 Hop . | . . . . Pick Up 34 | 7 14 10 3 Fast Attach . | . . . . Attach 24 | 6 2 8 8 Detach . | . . . . Swap 6 | . 6 . . Drop 12 | . 8 4 . Fire 66 | 4 38 14 10 Melee . | . . . . Ram . | . . . . Kick 1 | . 1 . . Crush . | . . . . Escape Stasis . | . . . . Rewire . | . . . . Trap . | . . . . Miscellaneous . | . . . . Route ------- -11/Scrapyard -10/Materials (discovered 2 exits: [*Mat] / [*Min]) -9/Materials -8/Materials History --------- Turn | Location | Event 5 | -11/Scrapyard | Discovered new exit (range 15) 85 | -11/Scrapyard | Entered Materials 300 | -10/Materials | Discovered new exit (range 15) 317 | -10/Materials | Build established: Mutant 789 | -10/Materials | Discovered new exit (range 16) 808 | -10/Materials | Entered another Materials area 808 | -9/Materials | Evolved 2 slots: Propulsion x1, Utility x1 958 | -9/Materials | Discovered new exit (range 15) 975 | -9/Materials | Identified exit to Materials 977 | -9/Materials | Lost 5 parts (1p3n1w) 990 | -9/Materials | Entered another Materials area 990 | -8/Materials | Evolved 2 slots: Propulsion x1, Weapon x1 1121 | -8/Materials | Garrison activated, responded to threat 1146 | -8/Materials | Self-destructed Last Messages --------------- 01136_ R-06 Scavenger collects Particle Gun. 01136_ Aluminum Leg destroyed. 01136_ R-06 Scavenger collects Sml. Matter Pod. 01137_ G-47 Trooper suffers critical hit (Destroy). 01137_ G-47 Trooper destroyed. 01139_ R-06 Scavenger collects Lgt. Nuclear Core. 01139_ R-06 Scavenger collects Aluminum Leg. 01140_ Minigun destroyed. 01141_ Critical hit (Burn: +37). 01142_ R-06 Scavenger collects Lgt. Nuclear Core. 01143_ G-47 Trooper destroyed. 01143_ Switching to secondary target: G-47 Trooper. 01143_ Sml. Laser destroyed. 01143_ R-06 Scavenger collects Wheel. 01145_ Sensor Array destroyed. 01145_ R-06 Scavenger sends out distress signal. Map ----- +----------------------------------------------------+ | ????????????# + """ #???????????????????????? | | ????????????# # """ #???????????????????????? | | ????????????# # """ #???????????????????????? | | ############# # #???????????????????????? | | ##########???????????????????????? | | ^ # #?????????????????????????? | | ^ # " #?????????????????????????? | | / #?????????????????????????? | | # #?????????????????????????? | | # #?????????????????????????? | | # #?????????????????????????? | | ############ ########?????????????????????????? | | ????????????# #??????########??????????????????? | | ????????????# #??????# #??????????????????? | | ????????????# ######## " #??????????????????? | | ????????????# # """ #??????????????????? | | ????????????# # """ #??????????????????? | | ????????????# # """ #??????????????????? | | ????????????######## # "" #??????????????????? | | ???????????????????# # """ #??????????????????? | | ???????????????????# # "" #??????????????????? | | ???????????????????+ Y "" #??????????????????? | | ???????????????????# #g "g #??????????????????? | | ???????????????????# # gg#??????????????????? | | ???????????????????# # %==#??????????????????? | | ???????????????????# # @ r% #??????????????????? | | ???????????????????# #####r##??????????????????? | | ???????????????????# ?? +??????????????????? | | ???????????????????# = #??????????????????? | | ???????????????????T #??????????????????? | | ???????????????????# #??????????????????? | | ???????????????????# """ ! #??????????????????? | | ?????????????????? """ #??????????????????? | | ???????????????? """ #??????????????????? | | ????????????????"" ??????????????????? | | ???????????????????? ? ??????????????????? | | ??????????????????????""" ??????????????????? | | ???????????????????????"" ??????????????????? | | ????????????????????????" ??????????????????? | | ???????????????????????? ###?????????????????? | | ???????????????????????? ????????????????????? | | ?????????????????????????? ????????????????????? | | ?????????????????????????????????????????????????? | | ?????????????????????????????????????????????????? | | ?????????????????????????????????????????????????? | | ?????????????????????????????????????????????????? | | ?????????????????????????????????????????????????? | | ?????????????????????????????????????????????????? | | ?????????????????????????????????????????????????? | | ?????????????????????????????????????????????????? | +----------------------------------------------------+ Best States ------------- Heat Dissipation 31 Energy Generation 14 Energy Capacity 160 Matter Stores 300 Matter Capacity 300 Sight Range 16 Robot Scan Range 14 Terrain Scan Density 10 Evasion (%) 55 Authchip Count 1 Item Schematics ----------------- None Robot Schematics ------------------ None Fabricated ------------ Nothing Repaired ---------- Nothing Alien Tech Used ----------------- None Achievements -------------- None Challenges ------------ None Game ------ Seed DirectedClaymoresCharge Manual? 0 Play Time 00:18:37 Cumulative 4.2 hours Start 2025.07.15 @ 23:55:44 End 2025.07.16 @ 00:15:19 Sessions 1 Manual Loads 0 Difficulty Rogue Special Mode None Game No. 6 Rogue 6 Adventurer 0 Explorer 0 Win Type - Total 0 Types 0/0/0/0/0/0/0/0/0/0 Lore% 15 Gallery% 7 Achievement% 15 Wizard Run 0 Options --------- Layout 1 ASCII 0 Keyboard 0 Movement Numpad Keybinds 0 Fullscreen 1 Font 24/Terminus Map View 50x35 Zoom Use 0% Tactical HUD 1 Map Filters NONE Filters NONE Steam 1 RUN: 90f33ae5-8e5b-4dad-8d43-8f82013a41ae